fUSD/lending_fUSD_20250101
["ID","MTS","AMOUNT","RATE_DAILY","PERIOD"]
[347374694,1735744238627,-500.0,0.00010958,2]
[347374696,1735744238637,-500.0,0.00010958,2]
[347374698,1735744238646,-703.1,0.00010958,2]
[347374700,1735744238655,-500.0,0.00010958,2]
[347374702,1735744238665,-500.0,0.00010958,2]
[347374704,1735744238674,-564.3,0.00010958,2]
[347374706,1735744238683,-1408.14,0.00010958,2]
[347374708,1735744238693,-1057.08,0.00010958,2]
[347374710,1735744238702,-1281.47,0.00010958,2]
[347374712,1735744238711,-1407.56,0.00010958,2]
[347374714,1735744238720,-500.0,0.00010958,2]
[347374715,1735744238730,-965.21,0.00010958,2]
[347374716,1735744238739,-521.89,0.00010958,2]
[347374717,1735744238748,-1047.18,0.00010958,2]
[347374718,1735744238757,-649.8,0.00010958,2]
[347374719,1735744238766,-1633.12,0.00010958,2]
[347374720,1735744238775,-638.01,0.00010958,2]
[347374721,1735744238784,-500.0,0.00010958,2]
[347374722,1735744238794,-500.0,0.00010958,2]
[347374723,1735744238803,-500.0,0.00010958,2]
[347374724,1735744238812,-500.0,0.00010958,2]
[347374725,1735744238821,-500.0,0.00010958,2]
[347374726,1735744238830,-500.0,0.00010958,2]
[347374727,1735744238839,-500.0,0.00010958,2]
[347374728,1735744238848,-1054.55,0.00010958,2]
[347374729,1735744238857,-1341.63,0.00010958,2]
[347374730,1735744238866,-500.0,0.00010958,2]
[347374731,1735744238876,-1706.74,0.00010958,2]
[347374732,1735744238885,-500.0,0.00010958,2]
[347374733,1735744238895,-1338.86,0.00010958,2]
[347374734,1735744238905,-689.21,0.00010958,2]
[347374735,1735744238914,-500.0,0.00010958,2]
[347374736,1735744238923,-672.45,0.00010958,2]
[347374738,1735744238933,-956.03,0.00010958,2]
[347374740,1735744238941,-500.0,0.00010958,2]
[347374741,1735744238950,-500.0,0.00010958,2]
[347374743,1735744238960,-500.0,0.00010958,2]
[347374744,1735744238968,-2239.07,0.00010958,2]
[347374745,1735744238978,-1752.29,0.00010958,2]
[347374746,1735744238988,-500.0,0.00010958,2]
[347374747,1735744238997,-500.0,0.00010958,2]
[347374748,1735744239006,-640.51,0.00010958,2]
[347374749,1735744239015,-500.0,0.00010958,2]
[347374750,1735744239025,-978.76,0.00010958,2]
[347374751,1735744239034,-500.0,0.00010958,2]
[347374752,1735744239043,-214.55977713,0.00010958,2]
[347374753,1735744239052,-500.0,0.00010958,2]
[347374754,1735744239061,-1112.68,0.00010958,2]
[347374755,1735744239071,-500.0,0.00010958,2]
[347374756,1735744239080,-1159.75,0.00010958,2]
[347374757,1735744239089,-1499.06,0.00010958,2]
[347374758,1735744239099,-500.0,0.00010958,2]
[347374759,1735744239108,-753.08,0.00010958,2]
[347374760,1735744239118,-615.55,0.00010958,2]
[347374761,1735744239127,-1500.53,0.00010958,2]
[347374762,1735744239135,-500.0,0.00010958,2]
[347374763,1735744239144,-1440.54,0.00010958,2]
[347374764,1735744239153,-500.0,0.00010958,2]
[347374765,1735744239163,-500.0,0.00010958,2]
[347374766,1735744239172,-1126.14,0.00010958,2]
[347374767,1735744239181,-1496.92,0.00010958,2]
[347374768,1735744239190,-500.0,0.00010958,2]
[347374769,1735744239199,-500.0,0.00010958,2]
[347374770,1735744239208,-5766.43,0.00010958,2]
[347374771,1735744239218,-508.3,0.00010958,2]
[347374772,1735744239227,-886.29,0.00010958,2]
[347374773,1735744239236,-608.21,0.00010958,2]
[347374774,1735744239246,-1036.35,0.00010958,2]
[347374775,1735744239255,-572.96,0.00010958,2]
[347374776,1735744239264,-500.0,0.00010958,2]
[347374777,1735744239529,-918.78,0.00010958,2]
[347374778,1735744239552,-941.22,0.00010958,2]
[347374779,1735744239561,-1153.49,0.00010958,2]
[347374780,1735744239571,-562.88,0.00010958,2]
[347374781,1735744239580,-506.43,0.00010958,2]
[347374782,1735744239590,-731.99,0.00010958,2]
[347374783,1735744239599,-500.0,0.00010958,2]
[347374784,1735744239608,-1044.06,0.00010958,2]
[347374785,1735744239617,-500.0,0.00010958,2]
[347374786,1735744239626,-1584.61,0.00010958,2]
[347374787,1735744239635,-1550.6,0.00010958,2]
[347374788,1735744239645,-737.88,0.00010958,2]
[347374789,1735744239655,-500.0,0.00010958,2]
[347374790,1735744239664,-623.28,0.00010958,2]
[347374791,1735744239673,-1892.79,0.00010958,2]
[347374792,1735744239682,-500.0,0.00010958,2]
[347374793,1735744239691,-1284.83,0.00010958,2]
[347374794,1735744239700,-500.0,0.00010958,2]
[347374795,1735744239709,-899.19,0.00010958,2]
[347374796,1735744239718,-1771.03,0.00010958,2]
[347374797,1735744239728,-702.78,0.00010958,2]
[347374798,1735744239737,-500.0,0.00010958,2]
[347374799,1735744239747,-767.76,0.00010958,2]
[347374801,1735744239756,-500.0,0.00010958,2]
[347374802,1735744239765,-500.0,0.00010958,2]
[347374803,1735744239775,-500.0,0.00010958,2]
[347374804,1735744239784,-500.0,0.00010958,2]
[347374805,1735744239795,-942.43,0.00010958,2]
[347374806,1735744239804,-554.69,0.00010958,2]
[347374808,1735744239814,-3499.78,0.00010958,2]
[347374809,1735744239824,-500.0,0.00010958,2]
[347374810,1735744239834,-922.73,0.00010958,2]
[347374811,1735744239843,-500.0,0.00010958,2]
[347374812,1735744239852,-596.94,0.00010958,2]
[347374813,1735744239861,-953.37,0.00010958,2]
[347374814,1735744239871,-12492.89,0.00010958,2]
[347374815,1735744239880,-1307.51,0.00010958,2]
[347374816,1735744239889,-500.0,0.00010958,2]
[347374817,1735744239899,-609.23,0.00010958,2]
[347374818,1735744239908,-500.0,0.00010958,2]
[347374819,1735744239917,-500.0,0.00010958,2]
[347374820,1735744239927,-1791.74,0.00010958,2]
[347374821,1735744239937,-561.07,0.00010958,2]
[347374822,1735744239946,-992.96,0.00010958,2]
[347374823,1735744239957,-1541.48,0.00010958,2]
[347374824,1735744239967,-500.0,0.00010958,2]
[347374825,1735744239976,-500.0,0.00010958,2]
[347374826,1735744239985,-500.0,0.00010958,2]
[347374827,1735744239994,-913.85,0.00010958,2]
[347374828,1735744240003,-500.0,0.00010958,2]
[347374829,1735744240013,-500.0,0.00010958,2]
[347374830,1735744240022,-2775.16,0.00010958,2]
[347374831,1735744240032,-618.53,0.00010958,2]
[347374832,1735744240041,-500.0,0.00010958,2]
[347374833,1735744240051,-500.0,0.00010958,2]
[347374834,1735744240061,-682.52,0.00010958,2]
[347374835,1735744240070,-500.0,0.00010958,2]
[347374836,1735744240079,-870.85,0.00010958,2]
[347374837,1735744240088,-500.0,0.00010958,2]
[347374838,1735744240097,-573.83,0.00010958,2]
[347374839,1735744240107,-557.66,0.00010958,2]
[347374840,1735744240117,-500.0,0.00010958,2]
[347374841,1735744240126,-3528.88,0.00010958,2]
[347374842,1735744240135,-500.0,0.00010958,2]
[347374843,1735744240145,-1331.51,0.00010958,2]
[347374844,1735744240154,-500.0,0.00010958,2]
[347374845,1735744240164,-500.0,0.00010958,2]
[347374846,1735744240173,-500.0,0.00010958,2]
[347374847,1735744240183,-500.0,0.00010958,2]
[347374848,1735744240192,-500.0,0.00010958,2]
[347374849,1735744240201,-500.0,0.00010958,2]
[347374850,1735744240211,-500.0,0.00010958,2]
[347374851,1735744240219,-1359.5,0.00010958,2]
[347374852,1735744240229,-893.46,0.00010958,2]
[347374853,1735744240239,-500.0,0.00010958,2]
[347374854,1735744240248,-500.0,0.00010958,2]
[347374856,1735744240257,-500.0,0.00010958,2]
[347374858,1735744240266,-500.0,0.00010958,2]
[347374859,1735744240279,-500.0,0.00010958,2]
[347374860,1735744240288,-500.0,0.00010958,2]
[347374861,1735744240297,-628.46,0.00010958,2]
[347374862,1735744240310,-500.0,0.00010958,2]
[347374863,1735744240320,-513.93,0.00010958,2]
[347374865,1735744240329,-903.33,0.00010958,2]
[347374866,1735744240338,-987.69,0.00010958,2]
[347374867,1735744240347,-500.0,0.00010958,2]
[347374868,1735744240356,-905.82,0.00010958,2]
[347374869,1735744240365,-732.97,0.00010958,2]
[347374870,1735744240375,-500.0,0.00010958,2]
[347374871,1735744240385,-1456.99,0.00010958,2]
[347374872,1735744240394,-500.0,0.00010958,2]
[347374873,1735744240403,-515.02,0.00010958,2]
[347374874,1735744240412,-763.24,0.00010958,2]
[347374875,1735744240422,-1530.29,0.00010958,2]
[347374876,1735744240431,-1139.32,0.00010958,2]
[347374877,1735744240440,-500.0,0.00010958,2]
[347374878,1735744240449,-500.0,0.00010958,2]
[347374879,1735744240458,-500.0,0.00010958,2]
[347374880,1735744240468,-1422.71,0.00010958,2]
[347374881,1735744240477,-500.0,0.00010958,2]
[347374882,1735744240486,-571.99,0.00010958,2]
[347374883,1735744240495,-500.0,0.00010958,2]
[347374884,1735744240505,-500.0,0.00010958,2]
[347374885,1735744240514,-951.66,0.00010958,2]
[347374886,1735744240523,-500.0,0.00010958,2]
[347374887,1735744240533,-768.56,0.00010958,2]
[347374888,1735744240542,-577.93,0.00010958,2]
[347374889,1735744240551,-1523.64,0.00010958,2]
[347374890,1735744240561,-994.12,0.00010958,2]
[347374891,1735744240570,-500.0,0.00010958,2]
[347374892,1735744240579,-500.0,0.00010958,2]
[347374893,1735744240587,-545.32,0.00010958,2]
[347374894,1735744240597,-1489.89,0.00010958,2]
[347374895,1735744240607,-950.96,0.00010958,2]
[347374896,1735744240616,-1040.74,0.00010958,2]
[347374897,1735744240625,-500.0,0.00010958,2]
[347374898,1735744240634,-505.19,0.00010958,2]
[347374899,1735744240644,-1365.94,0.00010958,2]
[347374900,1735744240654,-1611.08,0.00010958,2]
[347374901,1735744240663,-510.6,0.00010958,2]
[347374902,1735744240672,-500.0,0.00010958,2]
[347374903,1735744240681,-500.0,0.00010958,2]
[347374904,1735744240690,-500.0,0.00010958,2]
[347374905,1735744240699,-845.55,0.00010958,2]
[347374906,1735744240708,-1212.53,0.00010958,2]
[347374907,1735744240718,-500.0,0.00010958,2]
[347374908,1735744240727,-1025.37,0.00010958,2]
[347374909,1735744240736,-500.0,0.00010958,2]
[347374910,1735744240744,-500.0,0.00010958,2]
[347374911,1735744240753,-681.42,0.00010958,2]
[347374912,1735744240762,-1644.31,0.00010958,2]
[347374913,1735744240772,-521.54,0.00010958,2]
[347374914,1735744240781,-500.0,0.00010958,2]
[347374915,1735744240790,-500.0,0.00010958,2]
[347374916,1735744240799,-500.0,0.00010958,2]
[347374917,1735744240808,-500.0,0.00010958,2]
[347374918,1735744240818,-743.29,0.00010958,2]
[347374919,1735744240827,-500.0,0.00010958,2]
[347374920,1735744240836,-2026.83,0.00010958,2]
[347374921,1735744240845,-500.0,0.00010958,2]
[347374922,1735744240855,-500.0,0.00010958,2]
[347374923,1735744240864,-1165.36,0.00010958,2]
[347374924,1735744240873,-1003.93,0.00010958,2]
[347374925,1735744240882,-1160.59,0.00010958,2]
[347374926,1735744240892,-500.0,0.00010958,2]
[347374927,1735744240901,-500.0,0.00010958,2]
[347374928,1735744240910,-1600.06,0.00010958,2]
[347374929,1735744240920,-500.0,0.00010958,2]
[347374930,1735744240929,-525.31,0.00010958,2]
[347374931,1735744240938,-642.67,0.00010958,2]
[347374932,1735744240948,-1387.88,0.00010958,2]
[347374933,1735744240956,-564.31,0.00010958,2]
[347374934,1735744240965,-393.56363213,0.00010958,2]
[347374935,1735744240974,-527.21,0.00010958,2]
[347374936,1735744240983,-500.0,0.00010958,2]
[347374937,1735744240992,-500.0,0.00010958,2]
[347374938,1735744241001,-500.0,0.00010958,2]
[347374939,1735744241010,-1852.02,0.00010958,2]
[347374940,1735744241019,-515.49,0.00010958,2]
[347374941,1735744241029,-1465.44,0.00010958,2]
[347374942,1735744241038,-500.0,0.00010958,2]
[347374943,1735744241047,-500.0,0.00010958,2]
[347374944,1735744241056,-1251.37,0.00010958,2]
[347374945,1735744241065,-500.0,0.00010958,2]
[347374946,1735744241074,-500.0,0.00010958,2]
[347374947,1735744241084,-1034.53,0.00010958,2]
[347374948,1735744241093,-1693.89,0.00010958,2]
[347374949,1735744241102,-1802.52,0.00010958,2]
[347374950,1735744241111,-500.0,0.00010958,2]
[347374951,1735744241120,-500.0,0.00010958,2]
[347374952,1735744241129,-550.18,0.00010958,2]
[347374953,1735744241138,-680.06,0.00010958,2]
[347374954,1735744241147,-500.0,0.00010958,2]
[347374955,1735744241156,-500.0,0.00010958,2]
[347374956,1735744241165,-1006.57,0.00010958,2]
[347374957,1735744241174,-1636.61,0.00010958,2]
[347374958,1735744241183,-500.0,0.00010958,2]
[347374959,1735744241192,-787.73,0.00010958,2]
[347374960,1735744241201,-536.39,0.00010958,2]
[347374961,1735744241210,-500.0,0.00010958,2]
[347374962,1735744241219,-1080.75,0.00010958,2]
[347374963,1735744241228,-1188.05,0.00010958,2]
[347374964,1735744241237,-500.0,0.00010958,2]
[347374965,1735744241247,-1879.98,0.00010958,2]
[347374966,1735744241256,-331.31538091,0.00010958,2]
[347374967,1735744241265,-1016.42,0.00010958,2]
[347374968,1735744241275,-1812.45,0.00010958,2]
[347374969,1735744241284,-500.0,0.00010958,2]
[347374970,1735744241294,-500.0,0.00010958,2]
[347374971,1735744241303,-500.0,0.00010958,2]
[347374972,1735744241315,-500.0,0.00010958,2]
[347374973,1735744241325,-500.0,0.00010958,2]
[347374974,1735744241334,-1246.28,0.00010958,2]
[347374975,1735744241344,-565.95,0.00010958,2]
[347374976,1735744241360,-500.0,0.00010958,2]
[347374977,1735744241369,-511.84,0.00010958,2]
[347374978,1735744241379,-500.0,0.00010958,2]
[347374979,1735744241389,-1774.8,0.00010958,2]
[347374980,1735744241398,-500.0,0.00010958,2]
[347374981,1735744241409,-1012.8,0.00010958,2]
[347374982,1735744241418,-500.0,0.00010958,2]
[347374983,1735744241427,-500.0,0.00010958,2]
[347374984,1735744241436,-2432.01,0.00010958,2]
[347374985,1735744241447,-1935.63,0.00010958,2]
[347374986,1735744241456,-500.0,0.00010958,2]
[347374987,1735744241465,-681.92,0.00010958,2]
[347374988,1735744241475,-774.55,0.00010958,2]
[347374989,1735744241484,-500.0,0.00010958,2]
[347374990,1735744241494,-592.86,0.00010958,2]
[347374991,1735744241503,-643.17,0.00010958,2]
[347374992,1735744241513,-1851.14,0.00010958,2]
[347374993,1735744241522,-819.7,0.00010958,2]
[347374994,1735744241531,-633.14,0.00010958,2]
[347374995,1735744241541,-707.28,0.00010958,2]
[347374996,1735744241551,-500.0,0.00010958,2]
[347374997,1735744241561,-719.57,0.00010958,2]
[347374998,1735744241570,-1721.59,0.00010958,2]
[347374999,1735744241582,-500.0,0.00010958,2]
[347375000,1735744241591,-500.0,0.00010958,2]
[347375001,1735744241600,-500.0,0.00010958,2]
[347375002,1735744241609,-500.0,0.00010958,2]
[347375003,1735744241618,-897.28,0.00010958,2]
[347375004,1735744241627,-693.37,0.00010958,2]
[347375005,1735744241636,-500.0,0.00010958,2]
[347375006,1735744241645,-1611.39,0.00010958,2]
[347375007,1735744241654,-500.0,0.00010958,2]
[347375008,1735744241662,-923.14,0.00010958,2]
[347375009,1735744241672,-1650.68,0.00010958,2]
[347375010,1735744241681,-541.36,0.00010958,2]
[347375011,1735744241691,-500.0,0.00010958,2]
[347375012,1735744241699,-500.0,0.00010958,2]
[347375013,1735744241708,-1404.59,0.00010958,2]
[347375014,1735744241718,-688.36,0.00010958,2]
[347375015,1735744241727,-2354.86,0.00010958,2]
[347375016,1735744241736,-500.0,0.00010958,2]
[347375017,1735744241745,-555.26,0.00010958,2]
[347375018,1735744241754,-500.0,0.00010958,2]
[347375019,1735744241763,-500.0,0.00010958,2]
[347375020,1735744241773,-500.0,0.00010958,2]
[347375021,1735744241783,-500.0,0.00010958,2]
[347375022,1735744241792,-1409.9,0.00010958,2]
[347375023,1735744241801,-500.0,0.00010958,2]
[347375024,1735744241811,-589.01,0.00010958,2]
[347375025,1735744241819,-500.0,0.00010958,2]
[347375026,1735744241828,-1015.27,0.00010958,2]
[347375027,1735744241837,-500.0,0.00010958,2]
[347375028,1735744241847,-908.87,0.00010958,2]
[347375029,1735744241856,-1089.45,0.00010958,2]
[347375030,1735744241865,-3234.33,0.00010958,2]
[347375031,1735744241874,-608.81,0.00010958,2]
[347375032,1735744241884,-832.15,0.00010958,2]
[347375033,1735744241893,-500.0,0.00010958,2]
[347375034,1735744241902,-454.40751426,0.00010958,2]
[347375035,1735744241912,-500.0,0.00010958,2]
[347375036,1735744241921,-500.0,0.00010958,2]
[347375037,1735744241931,-1222.33,0.00010958,2]
[347375038,1735744241940,-500.0,0.00010958,2]
[347375039,1735744241949,-500.0,0.00010958,7]
[347375040,1735744241958,-500.0,0.00010958,2]
[347375041,1735744241968,-500.0,0.00010958,2]
[347375042,1735744241977,-1133.61,0.00010958,2]
[347375043,1735744241986,-2682.63,0.00010958,2]
[347375044,1735744241995,-500.0,0.00010958,2]
[347375045,1735744242005,-858.11,0.00010958,2]
[347375046,1735744242014,-1503.51,0.00010958,2]
[347375047,1735744242024,-1156.95,0.00010958,2]
[347375048,1735744242033,-1170.98,0.00010958,2]
[347375049,1735744242043,-522.87,0.00010958,2]
[347375050,1735744242054,-1984.07,0.00010958,2]
[347375051,1735744242063,-708.53,0.00010958,2]
[347375052,1735744242072,-1888.13,0.00010958,2]
[347375053,1735744242081,-500.0,0.00010958,2]
[347375054,1735744242091,-1243.69,0.00010958,2]
[347375055,1735744242100,-1916.88,0.00010958,2]
[347375056,1735744242109,-8448.23,0.00010958,2]
[347375057,1735744242120,-3339.77,0.00010958,2]
[347375058,1735744242130,-577.41,0.00010958,2]
[347375059,1735744242139,-1207.54,0.00010958,2]
[347375060,1735744242148,-500.0,0.00010958,2]
[347375061,1735744242158,-500.0,0.00010958,2]
[347375062,1735744242167,-500.0,0.00010958,2]
[347375063,1735744242177,-500.0,0.00010958,2]
[347375064,1735744242188,-1221.02,0.00010958,2]
[347375065,1735744242197,-500.0,0.00010958,2]
[347375066,1735744242207,-572.71,0.00010958,2]
[347375067,1735744242216,-500.0,0.00010958,2]
[347375068,1735744242225,-500.0,0.00010958,2]
[347375069,1735744242234,-1097.89,0.00010958,2]
[347375070,1735744242244,-1365.47,0.00010958,2]
[347375071,1735744242253,-500.0,0.00010958,2]
[347375072,1735744242262,-3467.45,0.00010958,2]
[347375073,1735744242271,-500.0,0.00010958,2]
[347375074,1735744242281,-729.2,0.00010958,2]
[347375075,1735744242291,-1174.05,0.00010958,2]
[347375076,1735744242300,-1260.88,0.00010958,2]
[347375077,1735744242314,-813.67,0.00010958,2]
[347375078,1735744242323,-1602.52,0.00010958,2]
[347375079,1735744242332,-500.0,0.00010958,2]
[347375080,1735744242342,-794.06,0.00010958,2]
[347375081,1735744242351,-500.0,0.00010958,2]
[347375082,1735744242361,-1482.81,0.00010958,2]
[347375083,1735744242370,-25040.17,0.00010958,2]
[347375084,1735744242380,-1113.95,0.00010958,2]
[347375085,1735744242389,-500.0,0.00010958,2]
[347375086,1735744242398,-722.34,0.00010958,2]
[347375087,1735744242408,-752.84,0.00010958,2]
[347375088,1735744242417,-500.0,0.00010958,2]
[347375089,1735744242426,-500.0,0.00010958,2]
[347375090,1735744242436,-500.0,0.00010958,2]
[347375091,1735744242445,-739.53,0.00010958,2]
[347375092,1735744242454,-1929.53,0.00010958,2]
[347375093,1735744242463,-500.0,0.00010958,2]
[347375094,1735744242473,-1699.95,0.00010958,2]
[347375095,1735744242482,-1469.04,0.00010958,2]
[347375096,1735744242492,-500.0,0.00010958,2]
[347375097,1735744242502,-1085.73,0.00010958,2]
[347375098,1735744242511,-537.03018582,0.00010958,2]
[347375099,1735744242521,-1018.69,0.00010958,2]
[347375100,1735744242531,-500.0,0.00010958,2]
[347375101,1735744242540,-500.0,0.00010958,2]
[347375102,1735744242549,-1805.8,0.00010958,2]
[347375103,1735744242559,-500.0,0.00010958,2]
[347375104,1735744242569,-500.0,0.00010958,2]
[347375105,1735744242578,-11269.1,0.00010958,2]
[347375106,1735744242587,-1919.66,0.00010958,2]
[347375107,1735744242597,-1152.83,0.00010958,2]
[347375108,1735744242607,-5377.7,0.00010958,2]
[347375109,1735744242617,-656.87,0.00010958,2]
[347375110,1735744242626,-500.0,0.00010958,2]
[347375111,1735744242636,-1723.14,0.00010958,2]
[347375112,1735744242645,-1427.14,0.00010958,2]
[347375113,1735744242655,-564.08,0.00010958,2]
[347375114,1735744242664,-1441.22,0.00010958,2]
[347375115,1735744242674,-642.64,0.00010958,2]
[347375116,1735744242683,-550.57,0.00010958,2]
[347375117,1735744242693,-2972.86,0.00010958,2]
[347375118,1735744242703,-648.34,0.00010958,2]
[347375120,1735744242712,-1029.21,0.00010958,2]
[347375122,1735744242722,-500.76,0.00010958,2]
[347375124,1735744242732,-500.0,0.00010958,2]
[347375125,1735744242741,-1652.02,0.00010958,2]
[347375126,1735744242750,-4016.73,0.00010958,2]
[347375127,1735744242759,-1276.09,0.00010958,2]
[347375128,1735744242768,-1218.26,0.00010958,2]
[347375129,1735744242778,-500.0,0.00010958,2]
[347375130,1735744242788,-1758.17,0.00010958,2]
[347375131,1735744242797,-500.0,0.00010958,2]
[347375132,1735744242807,-708.13,0.00010958,2]
[347375133,1735744242816,-500.0,0.00010958,2]
[347375134,1735744242826,-2946.9,0.00010958,2]
[347375135,1735744242835,-500.0,0.00010958,2]
[347375136,1735744242845,-1403.57,0.00010958,2]
[347375137,1735744242854,-1032.08,0.00010958,2]
[347375138,1735744242863,-500.0,0.00010958,2]
[347375139,1735744242873,-803.43,0.00010958,2]
[347375140,1735744242883,-1140.83,0.00010958,2]
[347375141,1735744242893,-500.0,0.00010958,2]
[347375142,1735744242903,-12434.54,0.00010958,2]
[347375143,1735744242913,-1424.72,0.00010958,2]
[347375144,1735744242922,-1456.34,0.00010958,2]
[347375145,1735744242932,-3032.92,0.00010958,2]
[347375146,1735744242941,-500.0,0.00010958,2]
[347375147,1735744242951,-500.0,0.00010958,2]
[347375148,1735744242960,-322.91805498,0.00010958,2]
[347375149,1735744242969,-1079.05,0.00010958,2]
[347375150,1735744242978,-500.0,0.00010958,2]
[347375151,1735744242987,-500.0,0.00010958,2]
[347375152,1735744242996,-1455.18,0.00010958,2]
[347375153,1735744243005,-500.0,0.00010958,2]
[347375154,1735744243015,-500.0,0.00010958,2]
[347375155,1735744243023,-731.89,0.00010958,2]
[347375156,1735744243033,-1957.04,0.00010958,2]
[347375157,1735744243043,-506.37,0.00010958,2]
[347375159,1735744243053,-1157.66,0.00010958,2]
[347375160,1735744243062,-3360.5,0.00010958,2]
[347375161,1735744243072,-533.84,0.00010958,2]
[347375162,1735744243081,-3431.84,0.00010958,2]
[347375163,1735744243090,-670.5,0.00010958,2]
[347375164,1735744243099,-500.0,0.00010958,2]
[347375165,1735744243109,-1641.93,0.00010958,2]
[347375166,1735744243118,-888.27,0.00010958,2]
[347375167,1735744243127,-648.95,0.00010958,2]
[347375168,1735744243136,-500.0,0.00010958,2]
[347375169,1735744243146,-500.0,0.00010958,2]
[347375170,1735744243155,-500.0,0.00010958,2]
[347375171,1735744243164,-1076.5,0.00010958,2]
[347375172,1735744243174,-500.0,0.00010958,2]
[347375173,1735744243183,-500.0,0.00010958,2]
[347375174,1735744243192,-4212.92,0.00010958,2]
[347375175,1735744243203,-1882.3,0.00010958,2]
[347375176,1735744243212,-500.0,0.00010958,2]
[347375177,1735744243221,-1392.75,0.00010958,2]
[347375178,1735744243230,-832.02,0.00010958,2]
[347375179,1735744243239,-2114.88,0.00010958,2]
[347375180,1735744243250,-816.58,0.00010958,2]
[347375181,1735744243259,-500.0,0.00010958,2]
[347375182,1735744243269,-1951.73,0.00010958,2]
[347375183,1735744243280,-500.0,0.00010958,2]
[347375184,1735744243289,-5279.68,0.00010958,2]
[347375185,1735744243299,-742.05,0.00010958,2]
[347375186,1735744243312,-500.0,0.00010958,2]
[347375187,1735744243321,-813.94,0.00010958,2]
[347375188,1735744243330,-1454.44,0.00010958,2]
[347375189,1735744243340,-582.22,0.00010958,2]
[347375190,1735744243350,-915.9,0.00010958,2]
[347375191,1735744243360,-616.62,0.00010958,2]
[347375192,1735744243370,-1945.83,0.00010958,2]
[347375193,1735744243381,-527.76,0.00010958,2]
[347375194,1735744243392,-4455.03,0.00010958,2]
[347375195,1735744243402,-500.0,0.00010958,2]
[347375197,1735744243413,-500.0,0.00010958,2]
[347375199,1735744243424,-920.51,0.00010958,2]
[347375200,1735744243433,-1152.55,0.00010958,2]
[347375201,1735744243443,-500.0,0.00010958,2]
[347375202,1735744243453,-1434.93,0.00010958,2]
[347375203,1735744243463,-500.0,0.00010958,2]
[347375204,1735744243474,-500.0,0.00010958,2]
[347375205,1735744243483,-1080.36,0.00010958,2]
[347375206,1735744243493,-3817.92,0.00010958,2]
[347375207,1735744243727,-4356.79,0.00010958,2]
[347375208,1735744243738,-1694.71,0.00010958,2]
[347375209,1735744243749,-928.45,0.00010958,2]
[347375210,1735744243758,-500.0,0.00010958,2]
[347375211,1735744243768,-2421.54,0.00010958,2]
[347375212,1735744243778,-500.0,0.00010958,2]
[347375213,1735744243788,-500.0,0.00010958,2]
[347375214,1735744243798,-500.0,0.00010958,2]
[347375215,1735744243808,-500.0,0.00010958,2]
[347375216,1735744243817,-972.43,0.00010958,2]
[347375217,1735744243827,-2044.29,0.00010958,2]